fUSD/lending_fUSD_20250325
["ID","MTS","AMOUNT","RATE_DAILY","PERIOD"]
[356663967,1742932238158,-108.40691813,0.00046187,2]
[356663968,1742932238167,-980.78716913,0.00046193,2]
[356663969,1742932238263,-2922.839905,0.00046193,2]
[356663978,1742932240304,-19996.37292587,0.00046193,2]
[356663979,1742932240314,-187.88,0.00046219,120]
[356663980,1742932240324,-150.0,0.00046239,2]
[356663981,1742932240334,-267.16,0.00046255,2]
[356663982,1742932240344,-1000.0,0.0004632,2]
[356663983,1742932240353,-510.03,0.00046409,2]
[356663984,1742932240363,-546.6003823,0.00046413,4]
[356663985,1742932240372,-550.0,0.00046498,5]
[356663986,1742932240383,-262.0,0.00046499,30]
[356663987,1742932240541,-1000.0,0.00046499,19]
[356663988,1742932240551,-1000.0,0.00046499,15]
[356663989,1742932240560,-1000.0,0.00046499,12]
[356663990,1742932240569,-975.219,0.00046499,77]
[356663991,1742932240578,-186.14,0.00046499,77]
[356663992,1742932240587,-300.0,0.00046499,4]
[356663993,1742932240597,-500.0,0.000465,120]
[356663994,1742932240606,-46802.16155354,0.000465,120]
[356663995,1742932240696,-2286.41945675,0.000465,120]
[356663996,1742932240708,-52055.15203059,0.000465,120]
[356663997,1742932240717,-510.03,0.00046507,2]
[356663998,1742932240727,-250.0,0.0004651,2]
[356663999,1742932240736,-621.43,0.00046578,2]
[356664000,1742932240745,-2000.0,0.000466,2]
[356664001,1742932240754,-7010.84,0.00046602,2]
[356664002,1742932240764,-510.03,0.00046605,2]
[356664003,1742932240776,-510.03,0.00046702,2]
[356664004,1742932240785,-150.56,0.00046708,120]
[356664005,1742932240794,-893.9952,0.00046771,2]
[356664006,1742932240803,-499.7485,0.00046788,120]
[356664007,1742932240813,-510.03,0.000468,2]
[356664008,1742932240822,-943.99,0.000468,2]
[356664009,1742932240832,-935.69729014,0.000468,15]
[356664011,1742932240844,-539.73039384,0.00046825,2]
[356664013,1742932240853,-162.174,0.00046843,2]
[356664015,1742932240861,-170.25,0.00046854,2]
[356664017,1742932240871,-696.55,0.00046861,30]
[356664019,1742932240881,-510.03,0.00046898,2]
[356664021,1742932240891,-943.99,0.000469,2]
[356664022,1742932240900,-943.99,0.000469,2]
[356664023,1742932240909,-227.01394257,0.000469,10]
[356664024,1742932240919,-935.69729011,0.00046922,15]
[356664026,1742932240929,-510.03,0.00046995,2]
[356664028,1742932240938,-943.99,0.00047,2]
[356664030,1742932240947,-943.99,0.00047,2]
[356664032,1742932240957,-827.13,0.00047034,2]
[356664034,1742932240966,-935.69729011,0.00047044,15]
[356664036,1742932240975,-510.03,0.00047093,2]
[356664038,1742932240985,-853.0,0.00047094,30]
[356664040,1742932240994,-935.69729011,0.00047167,15]
[356664042,1742932241003,-510.03,0.00047191,2]
[356664044,1742932241012,-510.03,0.00047288,2]
[356664046,1742932241021,-935.69729011,0.00047289,15]
[356664048,1742932241030,-510.03,0.00047386,2]
[356664050,1742932241040,-935.69729011,0.00047411,15]
[356664052,1742932241049,-510.03,0.00047484,2]
[356664054,1742932241058,-935.69729011,0.00047533,15]
[356664055,1742932241067,-853.0,0.00047579,30]
[356664056,1742932241076,-510.03,0.00047582,2]
[356664057,1742932241085,-2500.0,0.00047655,2]
[356664058,1742932241094,-935.69729011,0.00047656,15]
[356664059,1742932241103,-1000.0,0.00047659,2]
[356664060,1742932241112,-705.0268,0.00047669,2]
[356664061,1742932241122,-956.8,0.0004767,2]
[356664062,1742932241131,-500.0,0.00047674,120]
[356664063,1742932241140,-500.0,0.00047674,120]
[356664064,1742932241149,-200.0,0.00047674,120]
[356664065,1742932241158,-8500.0,0.00047675,16]
[356664066,1742932241168,-1051.6281937,0.00047678,19]
[356664067,1742932241177,-510.03,0.00047679,2]
[356664068,1742932241186,-313.26679834,0.0004768,2]
[356664069,1742932241196,-300.0,0.000477,30]
[356664070,1742932241208,-150.0,0.00047733,7]
[356664071,1742932241217,-150.0,0.00047733,7]
[356664072,1742932241227,-150.0,0.00047749,7]
[356664073,1742932241236,-2007.4319,0.00047752,3]
[356664074,1742932241245,-2000.0,0.00047752,3]
[356664075,1742932241255,-500.0,0.00047759,120]
[356664076,1742932241265,-211.0,0.00047759,2]
[356664077,1742932241275,-20219.4689924,0.00047759,3]
[356664078,1742932241284,-703.52,0.00047761,120]
[356664079,1742932241293,-500.0,0.00047761,120]
[356664080,1742932241303,-500.0,0.00047761,120]
[356664081,1742932241312,-578.11,0.00047761,120]
[356664082,1742932241322,-486.04859182,0.00047761,120]
[356664083,1742932241331,-500.0,0.00047761,120]
[356664084,1742932241340,-500.0,0.00047761,120]
[356664085,1742932241349,-240.11,0.00047761,120]
[356664086,1742932241359,-500.0,0.00047761,120]
[356664087,1742932241368,-500.0,0.00047761,120]
[356664088,1742932241377,-500.0,0.00047761,120]
[356664089,1742932241387,-500.0,0.00047761,120]
[356664090,1742932241397,-500.0,0.00047761,120]
[356664091,1742932241406,-1026.37,0.00047761,120]
[356664092,1742932241416,-500.0,0.00047761,120]
[356664093,1742932241425,-431.14654349,0.00047761,120]
[356664094,1742932241435,-279.61430322,0.00047761,120]
[356664095,1742932241444,-253.57350816,0.00047761,120]
[356664096,1742932241455,-164.82461466,0.00047761,120]
[356664097,1742932241464,-241.3775911,0.00047761,120]
[356664098,1742932241473,-500.0,0.00047761,120]
[356664099,1742932241483,-677.85,0.00047761,120]
[356664100,1742932241492,-639.50206332,0.00047761,120]
[356664101,1742932241501,-500.0,0.00047761,120]
[356664102,1742932241510,-538.60608745,0.00047761,120]
[356664103,1742932241520,-500.0,0.00047761,120]
[356664104,1742932241530,-500.0,0.00047761,120]
[356664105,1742932241539,-261.67945252,0.00047761,120]
[356664106,1742932241548,-1500.0,0.00047761,120]
[356664107,1742932241558,-500.0,0.00047761,120]
[356664108,1742932241567,-2745.65,0.00047761,120]
[356664109,1742932241576,-237.65614029,0.00047761,120]
[356664110,1742932241586,-500.0,0.00047761,120]
[356664111,1742932241595,-500.0,0.00047761,120]
[356664112,1742932241605,-500.0,0.00047761,120]
[356664113,1742932241614,-500.0,0.00047761,120]
[356664114,1742932241623,-500.0,0.00047761,120]
[356664115,1742932241633,-500.0,0.00047761,120]
[356664116,1742932241643,-500.0,0.00047761,120]
[356664117,1742932241652,-500.0,0.00047761,120]
[356664118,1742932241661,-500.0,0.00047761,120]
[356664119,1742932241671,-500.0,0.00047761,120]
[356664120,1742932241680,-500.0,0.00047761,7]
[356664121,1742932241689,-468.22994845,0.00047761,120]
[356664122,1742932241698,-418.90053682,0.00047761,120]
[356664123,1742932241708,-500.0,0.00047761,120]
[356664124,1742932241718,-1412.98,0.00047761,120]
[356664125,1742932241728,-500.54,0.00047761,120]
[356664126,1742932241738,-6433.49,0.00047761,2]
[356664127,1742932241747,-500.0,0.00047761,100]
[356664128,1742932241756,-20219.4689924,0.00047761,3]
[356664129,1742932241765,-500.0,0.00047762,120]
[356664130,1742932241774,-500.0,0.00047762,120]
[356664131,1742932241783,-500.0,0.00047762,120]
[356664132,1742932241794,-500.0,0.00047762,120]
[356664133,1742932241803,-300.0,0.00047762,120]
[356664134,1742932241812,-500.0,0.00047762,120]
[356664135,1742932241821,-150.0,0.00047762,7]
[356664136,1742932241833,-69757.11127483,0.00047763,11]
[356664137,1742932241845,-1164.22835039,0.00047763,11]
[356664170,1742932246223,-484.9,0.00047761,120]
[356664171,1742932246236,-189.31,0.00047761,120]
[356664172,1742932246246,-8660.08514084,0.00047763,11]
[356664189,1742932948039,250.0,0.00011,2]
[356664198,1742933123454,-170.02,0.00026849,2]
[356664199,1742933123485,-79.98,0.00032646,2]
[356664201,1742933136085,-90.04,0.00032646,2]
[356664202,1742933136110,-59.96,0.00034778,30]
[356664203,1742933137181,-178.67,0.00046162,120]
[356664204,1742933137205,-50.1712628,0.00046236,120]
[356664206,1742933150117,-98.76540797,0.00034778,30]
[356664207,1742933150141,-51.23459203,0.00038443,2]
[356664220,1742933236384,-100.3887372,0.00046236,120]
[356664221,1742933236413,-75.5612628,0.00046413,120]
[356664231,1742933262354,-118.78540797,0.00038443,2]
[356664232,1742933262376,-64.61645483,0.00044239,2]
[356664243,1742933325277,-105.40354517,0.00044239,2]
[356664244,1742933325300,-52.15459203,0.00044525,2]
[356664245,1742933344811,-202.45,0.00046413,120]
[356664246,1742933370464,-225.39008775,0.00044525,2]
[356664268,1742933432465,-542.10532022,0.00044525,2]
[356664269,1742933432479,-150.0,0.00044774,2]
[356664270,1742933432489,-2177.18134271,0.00045024,2]
[356664271,1742933432499,-225.39008775,0.00045834,2]
[356664272,1742933432509,-434.42687674,0.00045934,2]
[356664273,1742933432518,-151.49,0.00045939,2]
[356664274,1742933432528,-141.03192582,0.00046029,2]
[356664275,1742933432540,-8.96807418,0.00046029,2]
[356664276,1742933432550,-170.25,0.00046152,2]
[356664277,1742933432559,-164.13,0.00046154,2]
[356664278,1742933432569,-245.3,0.00046171,2]
[356664279,1742933432578,-1775.59,0.00046213,2]
[356664280,1742933432588,-2103.61,0.00046267,2]
[356664281,1742933432598,-250.0,0.00046304,2]
[356664282,1742933432607,-1000.0,0.00046398,2]
[356664283,1742933432617,-8735.1660944,0.00046413,120]
[356664284,1742933432671,-3526.6026428,0.00046413,120]
[356664285,1742933432681,-500.0,0.00046413,120]
[356664286,1742933432690,-500.0,0.00046413,120]
[356664287,1742933432700,-500.0,0.00046413,120]
[356664288,1742933432711,-500.0,0.00046413,120]
[356664289,1742933432721,-500.0,0.00046413,120]
[356664290,1742933432731,-500.0,0.00046413,120]
[356664291,1742933432741,-500.0,0.00046413,120]
[356664292,1742933432750,-500.0,0.00046413,120]
[356664293,1742933432760,-500.0,0.00046413,120]
[356664294,1742933432769,-500.0,0.00046413,120]
[356664295,1742933432779,-500.0,0.00046413,120]
[356664296,1742933432788,-500.0,0.00046413,120]
[356664297,1742933432798,-500.0,0.00046413,120]
[356664298,1742933432807,-500.0,0.00046413,120]
[356664299,1742933432817,-500.0,0.00046413,120]
[356664300,1742933432826,-500.0,0.00046413,120]
[356664301,1742933432836,-935.0,0.00046413,120]
[356664302,1742933432848,-536.4259946,0.00046413,4]
[356664303,1742933432858,-497.14,0.0004646,2]
[356664304,1742933432869,-429.22971215,0.00046599,120]
[356664305,1742933432878,-2000.0,0.000466,2]
[356664307,1742933432888,-250.01656051,0.000466,10]
[356664309,1742933432897,-3101.46466858,0.00046606,2]
[356664311,1742933432907,-162.174,0.00046724,2]
[356664313,1742933432917,-8756.94526099,0.00046742,2]
[356664315,1742933432926,-13284.46,0.00046752,2]
[356664317,1742933432935,-270.2332,0.00046771,2]
[356664319,1742933432945,-819.65,0.00046789,2]
[356664321,1742933432955,-755.19,0.000468,2]
[356664323,1742933432965,-188.8,0.000468,2]
[356664325,1742933432974,-1770.99993587,0.00046808,10]
[356664327,1742933432984,-755.19,0.000469,2]
[356664329,1742933432994,-755.19,0.000469,2]
[356664331,1742933433003,-188.8,0.000469,2]
[356664333,1742933433013,-188.8,0.000469,2]
[356664335,1742933433023,-755.19,0.00047,2]
[356664337,1742933433033,-755.19,0.00047,2]
[356664339,1742933433042,-188.8,0.00047,2]
[356664341,1742933433052,-188.8,0.00047,2]
[356664343,1742933433062,-854.0,0.00047094,30]
[356664345,1742933433072,-2092.28,0.00047124,2]
[356664348,1742933433082,-1429.76373,0.0004728,82]
[356664350,1742933433092,-400.0,0.000473,17]
[356664352,1742933433102,-800.0,0.000474,17]
[356664354,1742933433112,-1032.709,0.0004746,2]
[356664355,1742933433122,-935.69729014,0.00047465,15]
[356664362,1742933433304,-956.8,0.00047468,2]
[356664363,1742933433357,-2500.0,0.00047482,2]
[356664364,1742933433368,-2645.96736011,0.00047495,41]
[356664375,1742933438283,-500.0,0.00047494,120]
[356664377,1742933438293,-300.0,0.00047494,120]
[356664379,1742933438303,-500.0,0.00047494,120]
[356664380,1742933438312,-500.0,0.00047494,120]
[356664381,1742933438322,-500.0,0.00047494,120]
[356664382,1742933438332,-200.0,0.00047494,120]
[356664383,1742933438341,-500.0,0.00047494,120]
[356664384,1742933438351,-500.0,0.00047494,120]
[356664385,1742933438361,-500.0,0.00047494,120]
[356664386,1742933438371,-31603.54989021,0.00047495,41]
[356664387,1742933438380,-19373.05482542,0.00047495,11]
[356664395,1742933439038,-182.24991225,0.00047495,11]
[356664420,1742933440615,-3441.5477831,0.00047495,11]
[356664421,1742933440645,-208240.5821916,0.00047495,11]
[356664422,1742933440807,-188364.31600707,0.00047495,11]
[356664423,1742933440858,-4061.8760138,0.0003845,30]
[356664424,1742933440869,-629.23687052,0.0003845,30]
[356664433,1742933442364,-166.23,0.0003845,30]
[356664462,1742933444293,-5766.17478965,0.0003845,30]
[356664463,1742933444305,-535.26750463,0.0003845,30]
[356664464,1742933444315,-2210.13259537,0.00047495,11]
[356664465,1742933444327,-7605.72871212,0.00047495,11]
[356664466,1742933444346,-10632.41659197,0.00047495,11]
[356664467,1742933444358,-106748.76342501,0.00047495,11]
[356664468,1742933444378,-5974.24464,0.00047495,11]
[356664471,1742933445400,-2733.36047481,0.00047495,11]
[356664472,1742933445455,-8859.2832,0.00047495,11]
[356664473,1742933445668,-8217.29224125,0.00047495,11]
[356664478,1742933548485,-199.3525,0.0003845,30]
[356664479,1742934001999,-152.37,0.000335,31]
[356664480,1742934002025,-47.63,0.000373,31]
[356664482,1742934308870,205749.54152246,0.00012,2]
[356664483,1742934308900,589695.87335677,0.00012,2]
[356664514,1742934631690,-150.89,0.00026849,2]
[356664515,1742934631700,-165.48,0.000335,31]
[356664516,1742934631710,-150.89,0.00035321,2]
[356664517,1742934631719,-165.48,0.000373,31]
[356664518,1742934631729,-165.48,0.000373,31]
[356664519,1742934631738,-446.59163451,0.0003845,30]
[356664520,1742934631747,-165.48,0.000412,31]
[356664521,1742934631756,-165.48,0.000412,31]
[356664522,1742934631766,-646.0,0.00042262,2]
[356664523,1742934631775,-500.0,0.000423,120]
[356664524,1742934631784,-152.0,0.00043423,3]
[356664525,1742934631793,-222.0,0.000437,2]
[356664526,1742934631802,-150.89,0.00043793,2]
[356664527,1742934631813,-778.05,0.00044387,2]
[356664528,1742934631822,-222.0,0.0004478,30]
[356664529,1742934631831,-225.16922887,0.000449,10]
[356664530,1742934631841,-165.48,0.00045,39]
[356664531,1742934631852,-165.48,0.00045,39]
[356664532,1742934631861,-168.48,0.00045262,2]
[356664533,1742934631870,-151.49,0.00045391,2]
[356664534,1742934631879,-500.0,0.00045694,2]
[356664535,1742934631888,-200.0,0.00045744,2]
[356664536,1742934631898,-222.0,0.0004586,30]
[356664537,1742934631907,-143.69374902,0.00045947,2]
[356664538,1742934631919,-26.55625098,0.00045947,2]
[356664539,1742934631928,-200.0,0.00045972,2]
[356664540,1742934631937,-150.3,0.00045993,120]
[356664541,1742934631947,-140.41730919,0.00045993,2]
[356664542,1742934631959,-628.03269081,0.00045993,2]
[356664543,1742934631968,-173.57624903,0.00046007,2]
[356664544,1742934631994,-968.76375097,0.00046007,2]
[356664545,1742934632004,-150.56,0.0004604,120]
[356664546,1742934632014,-250.0,0.00046181,2]
[356664547,1742934632024,-1000.0,0.00046203,2]
[356664548,1742934632034,-490.8400228,0.00046413,4]
[356664549,1742934632044,-151.0,0.00046473,2]
[356664550,1742934632053,-200.0,0.000465,2]
[356664551,1742934632063,-1370.0,0.000465,120]
[356664552,1742934632072,-500.0,0.000465,120]
[356664554,1742934632082,-500.0,0.000465,120]
[356664556,1742934632091,-603.85634876,0.000465,120]
[356664557,1742934632101,-3668.39525331,0.00046501,2]
[356664558,1742934632113,-20231.60474669,0.00046501,2]
[356664559,1742934632122,-4455.34095657,0.00046525,2]
[356664560,1742934632134,-1648.49031376,0.00046525,2]
[356664563,1742934637544,-178.20626097,0.000465,120]
[356664564,1742934637563,-907.00872967,0.00046525,2]
[356664565,1742934637576,-435.57,0.00046536,2]
[356664566,1742934637586,-522.0,0.00046546,2]
[356664567,1742934637595,-574.21,0.00046586,2]
[356664568,1742934637606,-186.14013407,0.00046586,77]
[356664569,1742934637616,-987.139,0.00046586,77]
[356664570,1742934637626,-778.05,0.00046651,2]
[356664571,1742934637635,-574.21,0.00046684,2]
[356664572,1742934637645,-574.21,0.00046782,2]
[356664573,1742934637655,-11981.65587529,0.0004687,2]
[356664653,1742934639948,-365.67065678,0.0004687,2]
[356664654,1742934640015,-1469.4950141,0.0004687,2]
[356664655,1742934640025,-574.21,0.0004688,2]
[356664656,1742934640034,-222.0,0.0004694,30]
[356664657,1742934640043,-574.21,0.00046978,2]
[356664658,1742934640052,-14883.35369519,0.00047,120]
[356664689,1742934645685,-951.41719078,0.00047,120]
[356665221,1742935837646,-150.0,0.00034086,2]
[356665223,1742935837655,-150.0,0.00036623,2]
[356665225,1742935837664,-150.0,0.00037495,2]
[356665227,1742935837674,-483.674115,0.00042206,2]
[356665229,1742935837683,-48759.26073999,0.0004242,30]
[356665231,1742935837691,-225.16922884,0.000439,9]
[356665233,1742935837701,-5009.0,0.00044,2]
[356665235,1742935837710,-150.0,0.00044139,4]
[356665236,1742935837719,-760.43,0.0004414,2]
[356665238,1742935837728,-500.0,0.00045725,2]
[356665240,1742935837737,-1462.17,0.00045725,2]
[356665242,1742935837747,-23900.0,0.0004576,2]
[356665244,1742935837756,-150.56,0.00045805,120]
[356665246,1742935837765,-21702.44092022,0.00045848,41]
[356665248,1742935837774,-448.63526018,0.00045848,61]
[356665250,1742935837783,-260.13,0.00045849,2]
[356665252,1742935837792,-150.0,0.00045887,2]
[356665254,1742935837801,-754.9,0.00045887,2]
[356665256,1742935837810,-260.13,0.00045945,2]
[356665258,1742935837818,-5016.08355657,0.00046,5]
[356665260,1742935837828,-1000.0,0.00046,3]
[356665262,1742935837837,-153.0,0.00046027,120]
[356665264,1742935837846,-260.13,0.00046042,2]
[356665266,1742935837855,-5290.14,0.0004612,2]
[356665268,1742935837864,-9540.84,0.0004612,2]
[356665270,1742935837873,-499.99,0.0004612,2]
[356665271,1742935837883,-250.0,0.00046129,2]
[356665273,1742935837892,-260.13,0.00046138,2]
[356665275,1742935837901,-170.25,0.00046157,2]
[356665277,1742935837910,-214.36,0.00046164,120]
[356665279,1742935837919,-260.13,0.00046235,2]
[356665281,1742935837929,-1000.42,0.00046238,2]
[356665283,1742935837938,-260.13,0.00046331,2]
[356665285,1742935837947,-1000.0,0.00046334,2]
[356665287,1742935837957,-510.26,0.00046362,2]
[356665289,1742935837967,-417.6,0.00046388,2]
[356665306,1742935838125,-760.43,0.00046404,2]
[356665308,1742935838139,-789.711,0.00046413,77]
[356665311,1742935838150,-618.0037508,0.00046413,4]
[356665312,1742935838159,-260.13,0.00046428,2]
[356665314,1742935838170,-260.13,0.00046524,2]
[356665316,1742935838180,-2000.0,0.000466,2]
[356665318,1742935838189,-291.19,0.00046616,2]
[356665320,1742935838199,-260.13,0.00046621,2]
[356665322,1742935838209,-260.13,0.00046718,2]
[356665324,1742935838219,-5000.0,0.000468,120]
[356665326,1742935838229,-260.13,0.00046814,2]
[356665329,1742935838239,-217.73,0.000469,2]
[356665330,1742935838248,-1256.64055897,0.000469,15]
[356665332,1742935838257,-167.97438599,0.000469,120]
[356665334,1742935838266,-4255.8267,0.000469,2]
[356665336,1742935838276,-260.13,0.00046911,2]
[356665339,1742935838286,-215.72,0.0004699,30]
[356665340,1742935838295,-21586.46925711,0.00047,120]
[356665343,1742935838307,-3315.5785661,0.00047,120]
[356665345,1742935838318,-626.76206335,0.00047,120]
[356665347,1742935838333,-2315.05591593,0.00047,120]
[356665350,1742935838344,-3948.08331154,0.00047,120]
[356665352,1742935838353,-1463.91668846,0.00047,120]
[356665495,1742935839838,-2736.08331154,0.00047,120]
[356665497,1742935839848,-1912.92789717,0.00047,120]
[356665499,1742935839858,-1191.46977,0.00047,81]
[356665501,1742935839867,-260.13,0.00047007,2]
[356665503,1742935839877,-1256.64055897,0.00047011,15]
[356665505,1742935839887,-574.21,0.00047076,2]
[356665507,1742935839896,-853.0,0.00047094,30]
[356665509,1742935839906,-260.13,0.00047104,2]
[356665511,1742935839915,-1256.64055897,0.00047122,15]
[356665513,1742935839925,-167.97438595,0.0004715,120]
[356665515,1742935839935,-574.21,0.00047174,2]
[356665517,1742935839944,-300.0,0.00047178,30]
[356665519,1742935839953,-260.13,0.000472,2]
[356665521,1742935839962,-1256.64055897,0.00047233,15]
[356665523,1742935839971,-574.21,0.00047272,2]
[356665525,1742935839981,-681.36,0.00047285,2]
[356665526,1742935839991,-260.13,0.00047297,2]
[356665528,1742935840002,-300.0,0.000473,17]
[356665530,1742935840013,-1913.6831,0.00047302,2]
[356665532,1742935840023,-1256.64055897,0.00047344,15]
[356665534,1742935840032,-574.21,0.0004737,2]
[356665536,1742935840042,-260.13,0.00047393,2]
[356665539,1742935840052,-705.0268,0.00047393,2]
[356665540,1742935840061,-1335.9423,0.00047393,2]
[356665543,1742935840071,-893.9952,0.00047393,2]
[356665545,1742935840081,-211.0,0.000474,2]
[356665546,1742935840090,-700.0,0.000474,17]
[356665549,1742935840100,-167.97438595,0.000474,120]
[356665550,1742935840110,-500.0,0.00047401,120]
[356665552,1742935840119,-500.0,0.00047401,120]
[356665554,1742935840129,-500.0,0.00047401,120]
[356665556,1742935840138,-500.0,0.00047401,120]
[356665558,1742935840148,-279.61430322,0.00047401,120]
[356665560,1742935840157,-500.0,0.00047401,120]
[356665562,1742935840167,-677.85,0.00047401,120]
[356665564,1742935840176,-500.0,0.00047401,120]
[356665566,1742935840185,-500.0,0.00047401,120]
[356665568,1742935840194,-500.0,0.00047401,120]
[356665570,1742935840203,-500.0,0.00047401,120]
[356665572,1742935840212,-1819.35,0.00047401,120]
[356665574,1742935840222,-500.0,0.00047401,120]
[356665576,1742935840232,-1102.87971934,0.00047401,19]
[356665578,1742935840242,-10234.5126,0.00047401,2]
[356665580,1742935840251,-1000.0,0.00047401,2]
[356665582,1742935840260,-3710.1807,0.00047401,2]
[356665584,1742935840270,-1000.0,0.00047401,2]
[356665586,1742935840279,-2500.0,0.00047401,2]
[356665588,1742935840288,-500.0,0.00047402,2]
[356665590,1742935840297,-46107.2232,0.00047402,2]
[356665592,1742935840307,-151.0,0.00047402,14]
[356665594,1742935840316,-151.0,0.00047402,14]
[356665596,1742935840326,-152.03563,0.00047402,14]
[356665598,1742935840335,-151.511262,0.00047402,14]
[356665600,1742935840343,-151.0,0.00047402,14]
[356665602,1742935840353,-179.859679,0.00047402,14]
[356665604,1742935840362,-153.608512,0.00047402,14]
[356665606,1742935840371,-179.859679,0.00047402,14]
[356665608,1742935840380,-1256.64055897,0.00047456,15]
[356665610,1742935840390,-574.21,0.00047468,2]
[356665612,1742935840399,-756.53238739,0.00047475,120]
[356665614,1742935840408,-46276.71223403,0.00047482,15]
[356665616,1742935840418,-184.74539591,0.00047482,120]
[356665618,1742935840427,-328.20274976,0.00047482,120]
[356665620,1742935840436,-60967.56419449,0.00047483,11]
[356665622,1742935840447,-20063.32413473,0.00047483,11]
[356665625,1742935840459,-587797.41312649,0.00047483,11]
[356665632,1742935840523,-33.32612628,0.00047483,11]
[356665636,1742935840544,-130483.03456236,0.00047483,11]
[356665638,1742935840559,-1692.04651401,0.00047483,11]
[356665939,1742935845796,-2466.13852686,0.0004739,2]
[356665940,1742935845806,-500.0,0.00047401,120]
[356665941,1742935845815,-703193.69981431,0.00047483,11]
[356665942,1742935845855,-8384.8283844,0.00047483,11]
[356665943,1742935845866,-712133.21064912,0.00047483,11]
[356665945,1742935867650,193.914093,7.945e-05,2]
[356665965,1742937031890,-151.12,0.00026849,2]
[356665966,1742937031900,-150.0,0.00029534,2]
[356665967,1742937031909,-150.0,0.00029534,2]
[356665968,1742937031918,-150.0,0.00029534,2]
[356665969,1742937031927,-151.12,0.00033328,2]
[356665970,1742937031936,-151.12,0.00039807,2]
[356665971,1742937031945,-444.80384016,0.00044486,2]
[356665972,1742937031956,-286.79615984,0.00044486,2]
[356665973,1742937031965,-152.0,0.00045263,3]
[356665974,1742937031975,-151.49,0.00045708,2]
[356665975,1742937031984,-2103.61,0.00045871,2]
[356665976,1742937031997,-334.08,0.00045873,2]
[356665977,1742937032006,-245.3,0.00046237,2]
[356665978,1742937032015,-164.13,0.00046237,2]
[356665979,1742937032024,-170.25,0.00046281,2]
[356665980,1742937032034,-151.12,0.00046285,2]
[356665981,1742937032044,-250.0,0.00046388,2]
[356665982,1742937032053,-46.16253001,0.00046413,4]
[356665983,1742937032067,-417.34028309,0.00046413,4]
[356665984,1742937032078,-374.56720625,0.00046415,2]
[356665985,1742937032093,-712.02367317,0.00046415,2]
[356665986,1742937032105,-301.40912058,0.00046415,2]
[356665987,1742937032115,-150.3,0.00046432,120]
[356665988,1742937032126,-350.0,0.00046525,5]
[356665989,1742937032136,-1000.0,0.00046526,2]
[356665990,1742937032145,-560.44550001,0.000466,2]
[356665991,1742937032170,-559.83845746,0.000466,2]
[356665992,1742937032228,-879.71604253,0.000466,2]
[356665993,1742937032241,-731.6,0.0004675,2]
[356665994,1742937032254,-385.90130542,0.000469,2]
[356666383,1742937036141,-178.67,0.00037589,2]
[356666469,1742937037875,-71.33,0.00037589,2]
[356666470,1742937037888,-599.07645845,0.00045162,2]
[356666471,1742937037900,-614.09869458,0.000469,2]
[356666472,1742937037912,-225.16922884,0.000469,10]
[356666473,1742937037922,-786.0,0.00047,7]
[356666474,1742937037932,-854.0,0.00047094,30]
[356666475,1742937037943,-167.97438595,0.000472,120]
[356666476,1742937037953,-1000.0,0.000472,7]
[356666477,1742937037963,-167.97438595,0.00047233,120]
[356666478,1742937037973,-167.97438595,0.00047267,120]
[356666479,1742937037983,-179.77,0.0004729,30]